Cogmind - Beta 13 @@@ ROGUE MODE // 2024.05.10 @ 18:32:37 Player: Gabe+Kate4EVR Result: Destroyed by X-62 Marksman with Gauss Rifle Performance ------------- Evolutions (2) 1000 Regions Visited (3) 600 Robots Destroyed (45) 225 Value Destroyed (962) 962 Prototype IDs (3) 60 Alien Tech Used (0) 0 Bonus (0) 0 TOTAL SCORE: 2847 Bonus ------- None Cogmind --------- Core Integrity 0/550 Matter 284/300 Energy 100/100 System Corruption 0% Temperature Cool (9) Movement Core (100) Ox1 Location -8/Materials Parts ------- > --- POWER (1) -------- (None) > --- PROPULSION (4) --- (None) > --- UTILITY (4) ------ Advanced Targeting Computer > --- WEAPON (2) ------- Great Maul > --- INVENTORY (5) ---- Light Nuclear Core Hover Unit Hover Unit Grenade Launcher Grenade Launcher Peak State ------------ > --- POWER ------------ Improved Ion Engine > --- PROPULSION ------- Titanium Leg Wheel Wheel Armored Wheel > --- UTILITY ---------- Heat Sink Medium Storage Unit Advanced Targeting Computer Particle Charger > --- WEAPON ----------- Beam Rifle Heavy Assault Rifle > --- INVENTORY -------- Flight Unit Flight Unit Flight Unit Flight Unit VTOL Module Field Recycling Unit Light Cannon Grenade Launcher Grenade Launcher Mining Claw [Rating: 22] Favorites ----------- Power Improved Ion Engine Engine Improved Ion Engine Power Core Light Nuclear Core Propulsion Light Treads Treads Light Treads Leg Titanium Leg Wheel Wheel Hover Unit Hover Unit Flight Unit Flight Unit Utility Heat Sink Device Heat Sink Storage Medium Storage Unit Processor Visual Processing Unit Weapon Beam Cannon Energy Gun Beam Rifle Energy Cannon Beam Cannon Ballistic Gun Heavy Assault Rifle Launcher Grenade Launcher Impact Weapon Great Maul Slashing Weapon Katana Build | -11 -10 -9 -8 ------- Run | Yrd Mat Mat Mat Slots Evolved 4 | . . 2 2 Power . | . . . . Propulsion 2 | . . . 2 Utility 2 | . . 2 . Weapon . | . . . . Parts Attached 71 | 5 15 31 20 Power 6 | 1 1 3 1 Engine 5 | 1 1 3 . Core 1 | . . . 1 Reactor . | . . . . Propulsion 30 | . 7 11 12 Treads 6 | . . 5 1 Leg 1 | . . . 1 Wheel 8 | . 5 1 2 Hover 2 | . 2 . . Flight 13 | . . 5 8 Utility 14 | 1 3 8 2 Device 8 | . 2 5 1 Storage 4 | 1 1 2 . Processor 2 | . . 1 1 Hackware . | . . . . Protection . | . . . . Artifact . | . . . . Weapon 21 | 3 4 9 5 Energy Gun 6 | . . 5 1 Energy Cannon 5 | . 3 2 . Ballistic Gun 5 | 3 . 2 . Ballistic Cannon . | . . . . Launcher 2 | . 1 . 1 Special Weapon . | . . . . Impact Weapon 2 | . . . 2 Slashing Weapon 1 | . . . 1 Piercing Weapon . | . . . . Special Melee Weapon . | . . . . Unidentified Prototypes 3 | . . 3 . Parts Lost 20 | . . 5 15 Power 3 | . . 1 2 Propulsion 11 | . . 2 9 Utility 4 | . . 2 2 Weapon 2 | . . . 2 Highest Loss Streak 11 | . . 4 11 To Critical Strikes . | . . . . Average Slot Usage (%) 84 | . 74 90 74 Engine 8 | . 5 10 5 Treads 8 | . . 14 2 Wheel 7 | . 11 4 12 Hover 2 | . 12 . . Flight 1 | . . . 8 Device 19 | . 11 24 10 Storage 9 | . 7 11 6 Processor 3 | . . 3 8 Energy Gun 6 | . . 8 5 Energy Cannon 8 | . 15 8 . Ballistic Gun 4 | . 5 4 5 Launcher 1 | . 3 . 1 Naked Turns . | . . . . Heaviest Build 44 | 5 32 44 32 Greatest Support 40 | 3 32 40 32 Greatest Overweight (x) 8 | 1 2 8 2 Average Overweight (x) . | . . . . Largest Inventory Capacity 15 | 8 15 15 10 Average Capacity 10 | 5 10 11 8 Most Carried 15 | 3 13 15 10 Average Carried 9 | 2 6 11 7 Final Capacity 15 | 5 15 10 5 Final Carried 13 | 3 13 10 5 Class Distribution -------------------- 54% | Scavenger-Mutant 42% | Mutant 3% | Sprinter Dominant Class ---------------- Mutant | -10/Materials Scavenger-Mutant | -9/Materials Scavenger-Mutant | -8/Materials Resources | -11 -10 -9 -8 ----------- Run | Yrd Mat Mat Mat Matter Collected 1045 | 234 300 298 213 Remotely 279 | . 219 60 . Salvage Created 1375 | . 419 651 305 Parts 87 | . 32 39 16 Haulers Intercepted 3 | . 1 2 . Recyclers Shooed 2 | . 2 . . Parts Field Recycled . | . . . . Retrieved Matter . | . . . . Parts Self-Destructed . | . . . . Prevented . | . . . . Kills | -11 -10 -9 -8 ------- Run | Yrd Mat Mat Mat Combat Hostiles Destroyed 27 | . 8 10 9 Melee 2 | . . . 2 Guns 8 | . 1 6 1 Cannons 3 | . . 3 . AOE 11 | . 7 . 4 Classes Destroyed 10 | . 7 1 2 Worker 7 | . 3 2 2 Builder 2 | . 2 . . Tunneler 1 | . 1 . . Hauler 3 | . 1 2 . Recycler 4 | . 2 2 . Operator 1 | . . . 1 Swarmer 9 | . 3 3 3 Grunt 9 | . 5 2 2 Duelist 1 | . . . 1 Sentry 8 | . . 5 3 Best Kill Streak 9 | . 9 3 4 Combat Bots Only 8 | . 8 3 4 Max Kills in Single Turn 3 | . 2 1 3 Gunslinging . | . . . . Exploded 3 | . 2 . 3 Melee 1 | . . . 1 Uniques/NPCs Destroyed . | . . . . Combat | -11 -10 -9 -8 -------- Run | Yrd Mat Mat Mat Hostile Shots Fired 186 | . 13 84 89 Missed 53 | . 5 20 28 Damage Taken 2358 | . 84 889 1385 Core 756 | . 25 167 564 Absorbed by Shields . | . . . . Core Remaining (%) 82 | 100 90 58 . Volleys Fired 103 | . 26 60 17 Largest 2 | . 2 2 2 Hottest 125 | . 120 125 121 Shots Fired 188 | . 51 105 32 Gun 96 | . 12 54 30 Cannon 80 | . 29 51 . Launcher 12 | . 10 . 2 Special . | . . . . Kinetic 44 | . 12 20 12 Thermal 132 | . 29 85 18 Explosive 12 | . 10 . 2 Electromagnetic . | . . . . Robot Hit Streak 12 | . 6 12 7 Robot Miss Streak 7 | . 2 7 2 Penetration Max . | . . . . Secondary Targets 1 | . . . 1 Max Gunslinging Chain 1 | . . . 1 Shots Hit Robots 128 | . 25 75 28 Core Hits 73 | . 24 37 12 Critical Kills 1 | . . 1 . Critical Parts Destroyed 1 | . . . 1 Critical Strikes 5 | . . 1 4 Burn 3 | . . . 3 Meltdown 1 | . . 1 . Smash 1 | . . . 1 Melee Attacks 10 | . . . 10 Impact 9 | . . . 9 Slashing 1 | . . . 1 Piercing . | . . . . Sneak Attacks . | . . . . Combat Hostiles . | . . . . Follow-up Attacks 1 | . . . 1 Damage Inflicted 2722 | . 825 1140 757 Guns 948 | . 34 595 319 Cannons 817 | . 278 539 . Explosions 659 | . 513 . 146 Melee 292 | . . . 292 Ramming 6 | . . 6 . Kinetic 344 | . 34 176 134 Thermal 1421 | . 278 958 185 Explosive 659 | . 513 . 146 Electromagnetic . | . . . . Impact 256 | . . . 256 Slashing 36 | . . . 36 Piercing . | . . . . Highest Corruption 2 | . . 2 . Average Corruption 1 | . . 1 . Corruption Purged . | . . . . Corruption Blocked . | . . . . Overload Shots . | . . . . Overflow Damage 73 | . 5 . 68 Projectiles 5 | . 5 . . Explosions 10 | . . . 10 Melee 58 | . . . 58 Knockbacks . | . . . . Impact . | . . . . Kinetic . | . . . . Secondary . | . . . . Self-Inflicted Damage 32 | . . . 32 Shots 1 | . . . 1 Rammed 3 | . . 3 . Targets Rammed 3 | . . 3 . Kicked . | . . . . Crushed . | . . . . Highest Temperature 259 | . 240 259 117 Average Temperature 71 | . 80 70 40 Received Heat Transfer 774 | . 42 372 360 Effects 1 | . . 1 . Energy Bleed 1 | . . 1 . Siege Activations . | . . . . Robots Corrupted . | . . . . Combat Hostiles . | . . . . Parts Fried 1 | . . . 1 Impact Corruptions 3 | . . . 3 Robots Melted 1 | . . 1 . Combat Hostiles 1 | . . 1 . Parts Melted 7 | . 2 2 3 Heat Transferred 3039 | . 592 1818 629 Parts Sabotaged . | . . . . Parts Stolen . | . . . . Parts Stripped . | . . . . Power Chain Reactions . | . . . . Alert | -11 -10 -9 -8 ------- Run | Yrd Mat Mat Mat Peak Influence 291 | . 279 291 233 Initial 78 | . . 78 56 Average 147 | . 156 171 66 Maximum Alert Level 1 | . 1 1 1 Low Security (%) 74 | 100 86 62 98 Level 1 25 | . 13 37 1 Level 2 . | . . . . Level 3 . | . . . . Level 4 . | . . . . Level 5 . | . . . . High Security . | . . . . Max Security . | . . . . Squads Dispatched 8 | . 2 2 4 Investigation 2 | . 2 . . Extermination . | . . . . Reinforcement 6 | . . 2 4 Assault . | . . . . Garrison . | . . . . Intercept . | . . . . Searches Triggered . | . . . . Construction Impeded . | . . . . Haulers Reinforced . | . . . . Active Scanning Responses . | . . . . Cargo Convoy Interrupts . | . . . . Stealth | -11 -10 -9 -8 --------- Run | Yrd Mat Mat Mat Distress Signals 1 | . . 1 . Communications Jammed . | . . . . Distress Signals . | . . . . Times Spotted 47 | . 10 15 22 Peak Tracking Total 14 | . 3 4 14 Tactical Retreats 2 | . . 1 1 Traps | -11 -10 -9 -8 ------- Run | Yrd Mat Mat Mat Traps Triggered 5 | . 1 4 . Indirectly . | . . . . Trap Hack Attempts . | . . . . Triggered . | . . . . Disarmed . | . . . . Reprogrammed . | . . . . Reused . | . . . . Traps Extracted . | . . . . Installed . | . . . . Triggered . | . . . . Machines | -11 -10 -9 -8 ---------- Run | Yrd Mat Mat Mat Machines Disabled 5 | . 2 2 1 Max in Single Turn 1 | . 1 1 1 Machines Repaired . | . . . . Machines Dismantled . | . . . . Machines Sabotaged . | . . . . Overloaded Fab Kills . | . . . . Hacking | -11 -10 -9 -8 --------- Run | Yrd Mat Mat Mat Machines Accessed 7 | . 4 1 2 Terminals 7 | . 4 1 2 Fabricators . | . . . . Repair Stations . | . . . . Recycling Units . | . . . . Scanalyzers . | . . . . Garrison Access . | . . . . Total Hacks 16 | . 9 1 6 Successful 2 | . 1 . 1 Failed 14 | . 8 1 5 Catastrophic 4 | . 2 1 1 Database Lockouts . | . . . . Manual 16 | . 9 1 6 Terminals 16 | . 9 1 6 Fabricators . | . . . . Repair Stations . | . . . . Recycling Units . | . . . . Scanalyzers . | . . . . Garrison Access . | . . . . Terminal Hacks 2 | . 1 . 1 Unreport Threat 2 | . 1 . 1 Fabricator Hacks . | . . . . Repair Station Hacks . | . . . . Recycling Unit Hacks . | . . . . Scanalyzer . | . . . . Garrison Access Hacks . | . . . . Unauthorized Hacks . | . . . . Terminals . | . . . . Fabricators . | . . . . Repair Stations . | . . . . Recycling Units . | . . . . Scanalyzers . | . . . . Garrison Access . | . . . . Data Cores Recovered . | . . . . Used . | . . . . Hacking Detections 4 | . 2 . 2 Full Trace Events 1 | . 1 . . Feedback Events . | . . . . Feedback Blocked . | . . . . Robot Schematics Acquired . | . . . . Robots Built . | . . . . Authchips . | . . . . Time . | . . . . Total Robot Build Rating . | . . . . Part Schematics Acquired . | . . . . Parts Built . | . . . . Authchips . | . . . . Time . | . . . . Total Part Build Rating . | . . . . Parts Repaired . | . . . . Time . | . . . . Parts Recycled . | . . . . Recycled Matter . | . . . . Retrieved Matter . | . . . . Retrieved Components . | . . . . Parts Scanalyzed . | . . . . Part Schematics Acquired . | . . . . Parts Damaged . | . . . . Bothacking | -11 -10 -9 -8 ------------ Run | Yrd Mat Mat Mat Used RIF Installer . | . . . . Robots Hacked . | . . . . Non-combat . | . . . . Combat . | . . . . Robot Hacks Applied . | . . . . Relay Couplers Released . | . . . . Fabnet Peak Effective % . | . . . . Robots Rewired . | . . . . Allies Hacked . | . . . . Hacks Repelled . | . . . . Allies | -11 -10 -9 -8 -------- Run | Yrd Mat Mat Mat Total Allies . | . . . . Largest Group . | . . . . Highest-Rated Group . | . . . . Highest-Rated Ally . | . . . . Total Orders . | . . . . Ally Attacks . | . . . . Total Damage . | . . . . Kills . | . . . . Allies Corrupted . | . . . . Allies Melted . | . . . . Intel | -11 -10 -9 -8 ------- Run | Yrd Mat Mat Mat Robot Analysis Total . | . . . . Derelict Logs Recovered . | . . . . Drone Launches . | . . . . Drone Recoveries . | . . . . Exploration | -11 -10 -9 -8 ------------- Run | Yrd Mat Mat Mat Turns Passed 1674 | 38 372 991 273 Spaces Moved 1091 | 58 335 464 234 Core 110 | 58 50 2 . Treads 258 | . . 258 . Legs . | . . . . Wheels 419 | . 106 202 111 Hover 179 | . 179 . . Flight 125 | . . 2 123 Fastest Speed 29 | 50 50 95 29 Average Speed 105 | 51 75 153 64 Slowest Speed 450 | 100 176 450 120 Overloaded Moves . | . . . . Propulsion Burnouts . | . . . . Robots Hopped 3 | . . . 3 Cave-ins Triggered . | . . . . Exploration Rate (%) 30 | 4 50 36 32 Regions Visited 3 Branch Regions . Pre-discovered Areas . | . . . . Known Exits Taken . | . . . . Unknown Exits Taken 3 | 1 1 1 . Scrap Searched . | . . . . Spaces Dug . | . . . . Terrain Destroyed 52 | . 51 . 1 Melee . | . . . . Projectile . | . . . . AOE 52 | . 51 . 1 Terrain Rammed . | . . . . Walls Destroyed . | . . . . Machines Disabled . | . . . . Actions | -11 -10 -9 -8 --------- Run | Yrd Mat Mat Mat Total 1411 | 64 400 644 303 Wait 54 | . 9 36 9 Move 1082 | 57 334 463 228 Hop 3 | . . . 3 Pick Up 24 | . 8 13 3 Fast Attach 51 | 4 9 24 14 Attach 13 | . 2 5 6 Detach 14 | 2 3 7 2 Swap 7 | 1 4 2 . Drop 48 | . 5 31 12 Fire 103 | . 26 60 17 Melee 9 | . . . 9 Ram . | . . . . Kick . | . . . . Crush 3 | . . 3 . Escape Stasis . | . . . . Rewire . | . . . . Trap . | . . . . Miscellaneous . | . . . . Route ------- -11/Scrapyard -10/Materials (discovered 2 exits: *Mat / [*Min]) -9/Materials -8/Materials History --------- Turn | Location | Event 6 | -11/Scrapyard | Discovered new exit (range 16) 39 | -11/Scrapyard | Entered Materials 124 | -10/Materials | Discovered new exit (range 15) 141 | -10/Materials | Destroyed 8 combat bots 188 | -10/Materials | Discovered new exit (range 11) 305 | -10/Materials | Build established: Mutant 411 | -10/Materials | Entered another Materials area 411 | -9/Materials | Evolved 2 slots: Utility x2 910 | -9/Materials | Build established: Scavenger-Mutant 1017 | -9/Materials | Lost 4 parts (1p2n1u) 1342 | -9/Materials | Discovered new exit (range 18) 1402 | -9/Materials | Entered another Materials area 1402 | -8/Materials | Evolved 2 slots: Propulsion x2 1606 | -8/Materials | Lost 11 parts (1p6n2u2w) 1658 | -8/Materials | Lost 3 parts (3n) 1665 | -8/Materials | Core integrity fell below 50% 1675 | -8/Materials | Destroyed by X-62 Marksman with Gauss Rifle Last Messages --------------- 01661_ Katana follow-up attack on G-47 Trooper. 01662_ G-47 Trooper IFF system glitched. 01664_ Critical hit (Burn: +37). 01664_ Destroyed Imp. Heat Sink. 01664_ G-47 Trooper system corrupted by crushing effect. 01665_ G-47 Trooper system terminally corrupted. 01665_ Critical hit (Burn: +37). 01667_ K-01 Serf collects debris. 01669_ Lgt. Nuclear Core destroyed. 01670_ Destroyed Heat Sink. 01670_ Y-45 Defender system corrupted by crushing effect. 01671_ Y-45 Defender system terminally corrupted. 01671_ Heat Sink fried. 01671_ K-01 Serf collects debris. 01672_ Katana severed. 01673_ L-31 Rogue destroyed. 01675_ Nuclear Reactor explodes. 01675_ G-47 Trooper destroyed. 01675_ K-01 Serf destroyed. 01675_ G-47 Trooper destroyed. Map ----- +----------------------------------------------------+ | | | | | | | | | | | | | | | | | | | | | | | | | | | | | | | ?????????????????????????????????????????????????? | | ??????????????????????????????????????????????#??? | | ??????????????????????????########??????????#!!!?? | | ??????????????????????????# #??????????! ??? | | ????????????????????####### #?????????? ???? | | ??????????????????### # === [#???????### #???? | | ??????????????????# ==== ##??????+ #???# | | ?????????????????## == #??????# #??? | | ?????????????????# r /##??????# ###? | | ?????????????????# *![g#########+## # | | ?????????? ! @==xx # | | ?????????? = %/% k + ! | | ??????????[ % # | | ??????????? =#+###### # | | ???????????"" """ ???# % # | | ???????????????"" # #?# = ]] # | | ???????????????""?# ! """#?# [% *] # | | ??????????????????### # """#?# [ # | | ????????????????????####### """#?# # | | ??????????????????????????#! #?# ""T"" # | | ??????????????????????????########?# """"" | | ???????????????????????????????????# $ # | | ???????????????????????????????????# # | | ???????????????????????????????????## ######## # | | ????????????????????????????????????# #??????# # | | ????????????????????????????????????+ ######## # | | ????????????????????????????????????# #[ * # # | | ?????????????????????????????????#+## #/* # # | | ?????????????????????????????????# # * # # | | ?????????????????????????????????# #]! + | | ???????????????????????????????????# / ### | | ???????????????????????????????????# # #?? | | ????????????????????????????######## ######+#?? | | ????????????????????????????# # #???? #?? | | ????????????????????????????# ! # #?????#?? | +----------------------------------------------------+ Best States ------------- Heat Dissipation 70 Energy Generation 14 Energy Capacity 265 Matter Stores 300 Matter Capacity 300 Sight Range 18 Terrain Scan Density 10 Evasion (%) 63 Targeting Accuracy 8 Recoil Reduction 2 Particle Charging 15 Item Schematics ----------------- None Robot Schematics ------------------ None Fabricated ------------ Nothing Alien Tech Used ----------------- None Achievements -------------- None Challenges ------------ None Game ------ Seed GatlingAdvancedNanosword Manual? 0 Play Time 00:15:30 Cumulative 162.4 hours Start 2024.05.10 @ 18:19:29 End 2024.05.10 @ 18:32:37 Sessions 1 Manual Loads 0 Difficulty Rogue Special Mode None Game No. 323 Rogue 323 Adventurer 0 Explorer 0 Win Type - Total 0 Types 0/0/0/0/0/0/0/0/0 Lore% 39 Gallery% 60 Achievement% 42 Wizard Run 0 Options --------- Layout 0 ASCII 0 Keyboard 1 Movement Numpad Keybinds 0 Fullscreen 2 Font 18/X11 Map View 76x50 Zoom Use 0% Tactical HUD 1 Map Filters NONE Filters NONE Steam 1 RUN: 54929c8e-e222-4689-a0f3-3c7d2e30173c